[Event "Early-Titled-Tuesday-Blitz-September-05-2023"]
[Site "Chess.com"]
[Date "2023.09.05"]
[Round "6"]
[White "Aleksandar-Topalov"]
[Black "Ncatt"]
[Result "0-1"]
[WhiteElo "2357"]
[BlackElo "2453"]
[TimeControl "180+1"]
[EndTime "9:06:16 PDT"]
[Termination "Ncatt won on time"]

1. b3 {[%clk 0:03:00.9]} 1... e5 {[%clk 0:02:58.9]} 2. Bb2 {[%clk 0:03:00.7]}
2... d6 {[%clk 0:02:59.2]} 3. d4 {[%clk 0:03:00.5]} 3... e4 {[%clk 0:02:58.8]}
4. d5 {[%clk 0:03:00.4]} 4... Nf6 {[%clk 0:02:58.2]} 5. e3 {[%clk 0:03:00.6]}
5... Bf5 {[%clk 0:02:57]} 6. Ne2 {[%clk 0:03:00.5]} 6... Nbd7 {[%clk 0:02:56.7]}
7. Nbc3 {[%clk 0:03:00.7]} 7... Be7 {[%clk 0:02:49.8]} 8. Nf4 {[%clk 0:03:00.2]}
8... O-O {[%clk 0:02:49]} 9. Be2 {[%clk 0:03:00.2]} 9... Re8 {[%clk 0:02:49.1]}
10. Qd4 {[%clk 0:02:55.5]} 10... c5 {[%clk 0:02:44.6]} 11. dxc6 {[%clk
0:02:53.3]} 11... bxc6 {[%clk 0:02:44.8]} 12. g4 {[%clk 0:02:31.4]} 12... c5
{[%clk 0:02:37.2]} 13. Qd1 {[%clk 0:02:26.4]} 13... Bg6 {[%clk 0:02:28.7]} 14.
g5 {[%clk 0:02:25.9]} 14... Ne5 {[%clk 0:02:14]} 15. gxf6 {[%clk 0:02:22.6]}
15... Bxf6 {[%clk 0:02:14.9]} 16. Nfd5 {[%clk 0:02:21.4]} 16... Bh4 {[%clk
0:02:09.5]} 17. Nf4 {[%clk 0:02:11.2]} 17... Bf5 {[%clk 0:02:03.3]} 18. Qd2
{[%clk 0:02:05.8]} 18... Bg5 {[%clk 0:01:57.8]} 19. O-O-O {[%clk 0:02:03.2]}
19... Qa5 {[%clk 0:01:45.6]} 20. Kb1 {[%clk 0:01:57.6]} 20... Rad8 {[%clk
0:01:29.9]} 21. Ncd5 {[%clk 0:01:56.6]} 21... Qxd2 {[%clk 0:01:25.2]} 22. Rxd2
{[%clk 0:01:56.7]} 22... Nf3 {[%clk 0:01:18.5]} 23. Bxf3 {[%clk 0:01:52.9]}
23... exf3 {[%clk 0:01:19.4]} 24. h4 {[%clk 0:01:52.2]} 24... Bh6 {[%clk
0:01:13.4]} 25. Rg1 {[%clk 0:01:49.3]} 25... Kf8 {[%clk 0:01:11.1]} 26. Nh5
{[%clk 0:01:26.1]} 26... f6 {[%clk 0:01:04.2]} 27. Nhf4 {[%clk 0:01:15]} 27...
Kf7 {[%clk 0:00:58.5]} 28. Kc1 {[%clk 0:01:07.3]} 28... a5 {[%clk 0:00:57.7]}
29. Nb6 {[%clk 0:00:32.5]} 29... Bxf4 {[%clk 0:00:52.2]} 30. exf4 {[%clk
0:00:32.5]} 30... Re2 {[%clk 0:00:50.7]} 31. Bc3 {[%clk 0:00:31.7]} 31... d5
{[%clk 0:00:47.3]} 32. Bxa5 {[%clk 0:00:21.5]} 32... Rd6 {[%clk 0:00:47.3]} 33.
h5 {[%clk 0:00:17]} 33... h6 {[%clk 0:00:47.2]} 34. Kd1 {[%clk 0:00:15.1]} 34...
Rde6 {[%clk 0:00:32.6]} 35. Nxd5 {[%clk 0:00:15]} 35... Rd6 {[%clk 0:00:23.1]}
36. c4 {[%clk 0:00:14.1]} 36... Re4 {[%clk 0:00:20.5]} 37. Bc3 {[%clk
0:00:09.1]} 37... Be6 {[%clk 0:00:20.4]} 38. Rg3 {[%clk 0:00:08.2]} 38... Rd7
{[%clk 0:00:16.8]} 39. Kc2 {[%clk 0:00:06.3]} 39... Bf5 {[%clk 0:00:16.8]} 40.
Kb2 {[%clk 0:00:04.7]} 40... Re1 {[%clk 0:00:16.9]} 0-1

[Event "Early-Titled-Tuesday-Blitz-September-05-2023"]
[Site "Chess.com"]
[Date "2023.09.05"]
[Round "6"]
[White "DanielDardha2005"]
[Black "I_am_Javi"]
[Result "1-0"]
[WhiteElo "2954"]
[BlackElo "2747"]
[TimeControl "180+1"]
[EndTime "9:06:17 PDT"]
[Termination "DanielDardha2005 won by resignation"]

1. Nc3 {[%clk 0:03:00.9]} 1... e5 {[%clk 0:02:58.2]} 2. Nf3 {[%clk 0:03:00.5]}
2... Nc6 {[%clk 0:02:58.8]} 3. d4 {[%clk 0:03:01.2]} 3... exd4 {[%clk
0:02:59.3]} 4. Nxd4 {[%clk 0:03:02.1]} 4... Nf6 {[%clk 0:02:59.2]} 5. Bg5 {[%clk
0:03:00.7]} 5... Bb4 {[%clk 0:02:58.5]} 6. Nxc6 {[%clk 0:02:57.7]} 6... bxc6
{[%clk 0:02:56.6]} 7. Qd4 {[%clk 0:02:48.6]} 7... Be7 {[%clk 0:02:52.1]} 8. e4
{[%clk 0:02:44.3]} 8... d6 {[%clk 0:02:51.2]} 9. O-O-O {[%clk 0:02:44.1]} 9...
h6 {[%clk 0:02:48.2]} 10. Bh4 {[%clk 0:02:39.8]} 10... O-O {[%clk 0:02:39.2]}
11. Bc4 {[%clk 0:02:37.7]} 11... Be6 {[%clk 0:02:33.3]} 12. Bxe6 {[%clk
0:02:04]} 12... fxe6 {[%clk 0:02:34.2]} 13. f3 {[%clk 0:01:55.7]} 13... Kh8
{[%clk 0:02:21]} 14. Rhe1 {[%clk 0:01:46.4]} 14... e5 {[%clk 0:02:20.2]} 15. Qc4
{[%clk 0:01:45.6]} 15... c5 {[%clk 0:02:20.1]} 16. Bxf6 {[%clk 0:01:41.3]} 16...
Bxf6 {[%clk 0:02:21]} 17. Nd5 {[%clk 0:01:40.3]} 17... Rb8 {[%clk 0:02:20.9]}
18. Rd3 {[%clk 0:01:38.8]} 18... Bg5+ {[%clk 0:02:09.6]} 19. Kb1 {[%clk
0:01:38.2]} 19... c6 {[%clk 0:01:59.8]} 20. Ne3 {[%clk 0:01:32.6]} 20... Rb4
{[%clk 0:01:44.8]} 21. Qe6 {[%clk 0:01:31.5]} 21... Rf6 {[%clk 0:01:34.1]} 22.
Qxe5 {[%clk 0:01:28.5]} 22... Qb8 {[%clk 0:01:29.6]} 23. Qc3 {[%clk 0:01:23.9]}
23... Re6 {[%clk 0:01:21.7]} 24. Qa3 {[%clk 0:01:08]} 24... c4 {[%clk
0:01:14.9]} 25. Rdd1 {[%clk 0:01:01.9]} 25... c3 {[%clk 0:01:04.5]} 26. b3
{[%clk 0:00:53.1]} 26... d5 {[%clk 0:01:04.6]} 27. g3 {[%clk 0:00:32.6]} 27...
d4 {[%clk 0:00:51.2]} 28. Nf5 {[%clk 0:00:29.4]} 28... Bd2 {[%clk 0:00:49.2]}
29. Re2 {[%clk 0:00:22.5]} 29... c5 {[%clk 0:00:48.4]} 30. Qa5 {[%clk 0:00:12]}
30... Rb5 {[%clk 0:00:33.1]} 31. Qa4 {[%clk 0:00:08.9]} 31... Rb4 {[%clk
0:00:17.1]} 32. Qd7 {[%clk 0:00:08.9]} 32... Rg6 {[%clk 0:00:14.7]} 33. Qf7
{[%clk 0:00:08]} 33... Kh7 {[%clk 0:00:14.8]} 34. h4 {[%clk 0:00:04.3]} 34...
Rb7 {[%clk 0:00:14.7]} 35. Qc4 {[%clk 0:00:03.5]} 35... Rgb6 {[%clk 0:00:15.3]}
36. Qxc5 {[%clk 0:00:02.6]} 36... d3 {[%clk 0:00:11]} 37. Rexd2 {[%clk
0:00:02.8]} 37... Rxb3+ {[%clk 0:00:10.6]} 38. cxb3 {[%clk 0:00:02.1]} 38...
Rxb3+ {[%clk 0:00:11.5]} 39. axb3 {[%clk 0:00:02.8]} 39... Qxb3+ {[%clk
0:00:12]} 40. Kc1 {[%clk 0:00:03.6]} 40... c2 {[%clk 0:00:06.8]} 41. Rxc2 {[%clk
0:00:03.6]} 41... dxc2 {[%clk 0:00:07.2]} 42. Qxc2 {[%clk 0:00:04.3]} 1-0

[Event "Early-Titled-Tuesday-Blitz-September-05-2023"]
[Site "Chess.com"]
[Date "2023.09.05"]
[Round "6"]
[White "Karacsonyi_Gellert"]
[Black "banane_verte"]
[Result "0-1"]
[WhiteElo "2807"]
[BlackElo "2606"]
[TimeControl "180+1"]
[EndTime "9:06:18 PDT"]
[Termination "banane_verte won by resignation"]

1. e4 {[%clk 0:03:00.9]} 1... e6 {[%clk 0:02:59.9]} 2. d4 {[%clk 0:03:00.6]}
2... d5 {[%clk 0:02:59.6]} 3. Nd2 {[%clk 0:03:01.3]} 3... c5 {[%clk 0:02:58.7]}
4. exd5 {[%clk 0:03:01.6]} 4... Qxd5 {[%clk 0:02:57.4]} 5. Ngf3 {[%clk
0:03:02.1]} 5... cxd4 {[%clk 0:02:57.9]} 6. Bc4 {[%clk 0:03:02.8]} 6... Qd7
{[%clk 0:02:58.6]} 7. O-O {[%clk 0:03:03.5]} 7... Nf6 {[%clk 0:02:58.4]} 8. Nb3
{[%clk 0:03:04.2]} 8... Nc6 {[%clk 0:02:58.9]} 9. Nbxd4 {[%clk 0:03:04.8]} 9...
Nxd4 {[%clk 0:02:59.8]} 10. Nxd4 {[%clk 0:03:05.5]} 10... a6 {[%clk 0:03:00.2]}
11. Re1 {[%clk 0:03:05.9]} 11... Bc5 {[%clk 0:02:58]} 12. Nf3 {[%clk 0:02:25.8]}
12... Ng4 {[%clk 0:02:49.2]} 13. Qxd7+ {[%clk 0:02:09.3]} 13... Bxd7 {[%clk
0:02:49.3]} 14. Re2 {[%clk 0:02:09]} 14... Bc6 {[%clk 0:02:44.4]} 15. Ne1 {[%clk
0:02:08.6]} 15... O-O-O {[%clk 0:02:39]} 16. Bf4 {[%clk 0:02:08.3]} 16... Rd4
{[%clk 0:02:18.5]} 17. Nd3 {[%clk 0:01:12]} 17... Rxc4 {[%clk 0:02:05.4]} 18. b3
{[%clk 0:01:12.5]} 18... Rxf4 {[%clk 0:01:30.3]} 19. Nxf4 {[%clk 0:01:13.4]}
19... Rd8 {[%clk 0:01:27.9]} 20. Nd3 {[%clk 0:01:13.4]} 20... Bd4 {[%clk
0:01:26.9]} 21. Rae1 {[%clk 0:01:08.8]} 21... Bc3 {[%clk 0:01:23.8]} 22. Rc1
{[%clk 0:00:58.1]} 22... Bb5 {[%clk 0:01:22.3]} 23. h3 {[%clk 0:00:57.2]} 23...
Nf6 {[%clk 0:01:18.6]} 24. Rd1 {[%clk 0:00:47.9]} 24... e5 {[%clk 0:01:08.9]}
25. a4 {[%clk 0:00:46.9]} 25... Bxd3 {[%clk 0:01:06.7]} 26. cxd3 {[%clk
0:00:46.3]} 26... Kd7 {[%clk 0:00:59.6]} 27. Rc2 {[%clk 0:00:44.6]} 27... Bd4
{[%clk 0:00:58.7]} 28. g3 {[%clk 0:00:38.5]} 28... Nd5 {[%clk 0:00:56]} 29. Kg2
{[%clk 0:00:36.6]} 29... Rc8 {[%clk 0:00:48.1]} 30. Rc4 {[%clk 0:00:35.7]} 30...
b5 {[%clk 0:00:46]} 31. axb5 {[%clk 0:00:33.6]} 31... axb5 {[%clk 0:00:46.9]}
32. Rxc8 {[%clk 0:00:34]} 32... Kxc8 {[%clk 0:00:47.8]} 33. Rc1+ {[%clk
0:00:30.8]} 33... Kd7 {[%clk 0:00:46.2]} 34. Kf3 {[%clk 0:00:30.8]} 34... f5
{[%clk 0:00:45.4]} 35. g4 {[%clk 0:00:28.9]} 35... g6 {[%clk 0:00:38]} 36. gxf5
{[%clk 0:00:29.3]} 36... gxf5 {[%clk 0:00:38.9]} 37. Rg1 {[%clk 0:00:29.6]}
37... Nf4 {[%clk 0:00:32.3]} 38. Rg7+ {[%clk 0:00:23]} 38... Kd6 {[%clk
0:00:32.2]} 39. Rxh7 {[%clk 0:00:23.9]} 39... Nxd3 {[%clk 0:00:32.6]} 40. h4
{[%clk 0:00:24]} 40... e4+ {[%clk 0:00:30.4]} 41. Ke2 {[%clk 0:00:24.2]} 41...
Nxf2 {[%clk 0:00:25.5]} 42. h5 {[%clk 0:00:23.7]} 42... f4 {[%clk 0:00:22.9]}
43. h6 {[%clk 0:00:21.6]} 43... f3+ {[%clk 0:00:23.3]} 44. Kf1 {[%clk
0:00:15.8]} 44... e3 {[%clk 0:00:22.9]} 45. Rf7 {[%clk 0:00:06.2]} 45... e2+
{[%clk 0:00:22.5]} 46. Ke1 {[%clk 0:00:06.8]} 46... Nd3+ {[%clk 0:00:22.5]} 47.
Kd2 {[%clk 0:00:07.3]} 47... e1=Q+ {[%clk 0:00:23.4]} 48. Kxd3 {[%clk 0:00:08]}
48... Qc3+ {[%clk 0:00:20.1]} 0-1

[Event "Early-Titled-Tuesday-Blitz-September-05-2023"]
[Site "Chess.com"]
[Date "2023.09.05"]
[Round "6"]
[White "sergoy"]
[Black "ayanakhmetov"]
[Result "1-0"]
[WhiteElo "2895"]
[BlackElo "2590"]
[TimeControl "180+1"]
[EndTime "9:06:18 PDT"]
[Termination "sergoy won on time"]

1. d4 {[%clk 0:03:00.9]} 1... e6 {[%clk 0:02:56.2]} 2. c4 {[%clk 0:03:00.9]}
2... b6 {[%clk 0:02:55.7]} 3. f3 {[%clk 0:02:59.7]} 3... Bb7 {[%clk 0:02:49.7]}
4. e4 {[%clk 0:02:59.5]} 4... f5 {[%clk 0:02:47]} 5. exf5 {[%clk 0:02:57.3]}
5... Nh6 {[%clk 0:02:45.1]} 6. fxe6 {[%clk 0:02:48.9]} 6... Nf5 {[%clk
0:02:44.4]} 7. Ne2 {[%clk 0:02:40.7]} 7... dxe6 {[%clk 0:02:31.3]} 8. Nbc3
{[%clk 0:02:39.6]} 8... Nc6 {[%clk 0:02:12.9]} 9. d5 {[%clk 0:02:34.8]} 9... Ne5
{[%clk 0:02:12]} 10. Bf4 {[%clk 0:02:29.4]} 10... Qh4+ {[%clk 0:01:34.7]} 11.
Bg3 {[%clk 0:02:29.5]} 11... Nxg3 {[%clk 0:01:28.2]} 12. Nxg3 {[%clk 0:02:30.4]}
12... O-O-O {[%clk 0:01:07.2]} 13. Qc2 {[%clk 0:02:29]} 13... Nxc4 {[%clk
0:01:04.2]} 14. Bxc4 {[%clk 0:00:34.4]} 14... Qxc4 {[%clk 0:01:05.1]} 15. O-O-O
{[%clk 0:00:32.1]} 15... exd5 {[%clk 0:01:01.6]} 16. Kb1 {[%clk 0:00:29.6]}
16... Bb4 {[%clk 0:00:55.2]} 17. Qf5+ {[%clk 0:00:26.1]} 17... Kb8 {[%clk
0:00:54.9]} 18. Nce2 {[%clk 0:00:26.1]} 18... Rde8 {[%clk 0:00:47.1]} 19. Nd4
{[%clk 0:00:23.1]} 19... g6 {[%clk 0:00:43.5]} 20. Qf6 {[%clk 0:00:20.9]} 20...
Bd6 {[%clk 0:00:31.9]} 21. Rhe1 {[%clk 0:00:14.1]} 21... a6 {[%clk 0:00:24.3]}
22. Ka1 {[%clk 0:00:14.1]} 22... Rhf8 {[%clk 0:00:20]} 23. Qg7 {[%clk
0:00:13.8]} 23... Ka7 {[%clk 0:00:14.7]} 24. Nge2 {[%clk 0:00:04.5]} 24... Re3
{[%clk 0:00:10.1]} 25. Rc1 {[%clk 0:00:03.5]} 25... Qb4 {[%clk 0:00:05.8]} 26.
Nc2 {[%clk 0:00:03.6]} 26... Qd2 {[%clk 0:00:03.1]} 27. Nxe3 {[%clk 0:00:03.9]}
27... Qxe3 {[%clk 0:00:04]} 28. Nd4 {[%clk 0:00:04.4]} 28... Qd2 {[%clk
0:00:03]} 29. Nb3 {[%clk 0:00:04.2]} 29... Qxg2 {[%clk 0:00:02.5]} 30. Rxc7
{[%clk 0:00:04.1]} 30... Bxc7 {[%clk 0:00:03.1]} 31. Qxf8 {[%clk 0:00:04.4]}
31... Qf2 {[%clk 0:00:02.9]} 32. Rc1 {[%clk 0:00:04.2]} 32... Bxh2 {[%clk
0:00:02.7]} 33. Qf7 {[%clk 0:00:04.3]} 33... Qe3 {[%clk 0:00:02.3]} 34. Qxh7
{[%clk 0:00:03.7]} 34... Qxf3 {[%clk 0:00:02.3]} 35. Qxh2 {[%clk 0:00:03.5]}
35... Qe4 {[%clk 0:00:01.9]} 36. Qd2 {[%clk 0:00:04.1]} 36... a5 {[%clk
0:00:01.3]} 37. Nd4 {[%clk 0:00:05]} 1-0

[Event "Early-Titled-Tuesday-Blitz-September-05-2023"]
[Site "Chess.com"]
[Date "2023.09.05"]
[Round "6"]
[White "Khromkin"]
[Black "CixPer1968"]
[Result "0-1"]
[WhiteElo "2399"]
[BlackElo "2195"]
[TimeControl "180+1"]
[EndTime "9:06:22 PDT"]
[Termination "CixPer1968 won on time"]

1. d4 {[%clk 0:03:00.9]} 1... d5 {[%clk 0:02:54.3]} 2. c4 {[%clk 0:03:01.2]}
2... c6 {[%clk 0:02:54.1]} 3. Nf3 {[%clk 0:02:59.3]} 3... Nf6 {[%clk 0:02:53.7]}
4. Nc3 {[%clk 0:02:59.8]} 4... dxc4 {[%clk 0:02:54]} 5. a4 {[%clk 0:02:59.9]}
5... Bf5 {[%clk 0:02:53.6]} 6. Ne5 {[%clk 0:02:59.9]} 6... Nbd7 {[%clk
0:02:53.3]} 7. Nxc4 {[%clk 0:03:00.5]} 7... Nb6 {[%clk 0:02:53]} 8. e3 {[%clk
0:02:53.8]} 8... e6 {[%clk 0:02:50.8]} 9. a5 {[%clk 0:02:52.8]} 9... Nbd7 {[%clk
0:02:45.3]} 10. Qb3 {[%clk 0:02:44.7]} 10... Qc7 {[%clk 0:02:43.8]} 11. Bd2
{[%clk 0:02:38.5]} 11... Be7 {[%clk 0:02:43.1]} 12. Rc1 {[%clk 0:02:36.4]} 12...
Rc8 {[%clk 0:02:38.3]} 13. g3 {[%clk 0:02:35.4]} 13... Ne4 {[%clk 0:02:33.4]}
14. Bg2 {[%clk 0:02:33.8]} 14... Nxd2 {[%clk 0:02:31.3]} 15. Nxd2 {[%clk
0:02:31.1]} 15... O-O {[%clk 0:02:23.4]} 16. O-O {[%clk 0:02:28.6]} 16... Nf6
{[%clk 0:02:23.2]} 17. Nc4 {[%clk 0:02:16.7]} 17... h5 {[%clk 0:02:14]} 18. h3
{[%clk 0:02:13.5]} 18... h4 {[%clk 0:02:08.1]} 19. g4 {[%clk 0:02:12.3]} 19...
Bd3 {[%clk 0:01:52.9]} 20. Rfd1 {[%clk 0:02:02.8]} 20... Bxc4 {[%clk 0:01:53.1]}
21. Qxc4 {[%clk 0:02:03.1]} 21... Rfd8 {[%clk 0:01:49.5]} 22. b4 {[%clk
0:02:00]} 22... Qd6 {[%clk 0:01:27.1]} 23. Rb1 {[%clk 0:01:41.6]} 23... a6
{[%clk 0:01:24.4]} 24. Na4 {[%clk 0:01:28]} 24... e5 {[%clk 0:01:20.4]} 25. Nc5
{[%clk 0:01:18.3]} 25... Rb8 {[%clk 0:00:59.8]} 26. Rb3 {[%clk 0:01:13.3]} 26...
exd4 {[%clk 0:00:57.6]} 27. Rxd4 {[%clk 0:01:12.3]} 27... Qe5 {[%clk 0:00:53.3]}
28. Rbd3 {[%clk 0:01:11.5]} 28... Rxd4 {[%clk 0:00:46.9]} 29. Rxd4 {[%clk
0:00:59.9]} 29... Bxc5 {[%clk 0:00:41.9]} 30. bxc5 {[%clk 0:00:58.4]} 30... Re8
{[%clk 0:00:37.7]} 31. Qb3 {[%clk 0:00:37.5]} 31... Qc7 {[%clk 0:00:32.3]} 32.
Rb4 {[%clk 0:00:30.7]} 32... Re7 {[%clk 0:00:31.7]} 33. Rb6 {[%clk 0:00:19.6]}
33... g6 {[%clk 0:00:24.6]} 34. Qb2 {[%clk 0:00:18.2]} 34... Nd7 {[%clk
0:00:18.3]} 35. Qd4 {[%clk 0:00:16.6]} 35... Nxb6 {[%clk 0:00:17.1]} 36. axb6
{[%clk 0:00:15.8]} 36... Qd7 {[%clk 0:00:17.4]} 37. Qf4 {[%clk 0:00:14.5]} 37...
Qd1+ {[%clk 0:00:15.9]} 38. Kh2 {[%clk 0:00:14.1]} 38... Qd7 {[%clk 0:00:15.4]}
39. g5 {[%clk 0:00:11.2]} 39... Qd2 {[%clk 0:00:13]} 40. Qxh4 {[%clk 0:00:09.9]}
40... Qc2 {[%clk 0:00:12.1]} 41. Qd4 {[%clk 0:00:03.7]} 41... Qxf2 {[%clk
0:00:11.9]} 42. Qd8+ {[%clk 0:00:03.7]} 42... Kg7 {[%clk 0:00:11.7]} 43. Qxe7
{[%clk 0:00:04.3]} 43... Qc2 {[%clk 0:00:11.7]} 44. Qf6+ {[%clk 0:00:04.3]}
44... Kg8 {[%clk 0:00:12]} 0-1

[Event "Early-Titled-Tuesday-Blitz-September-05-2023"]
[Site "Chess.com"]
[Date "2023.09.05"]
[Round "6"]
[White "Iunusovnuriddin"]
[Black "Hoshka"]
[Result "1-0"]
[WhiteElo "2321"]
[BlackElo "2041"]
[TimeControl "180+1"]
[EndTime "9:06:24 PDT"]
[Termination "Iunusovnuriddin won on time"]

1. e4 {[%clk 0:03:00.9]} 1... e5 {[%clk 0:02:59.7]} 2. Nf3 {[%clk 0:03:00.5]}
2... Nc6 {[%clk 0:02:59.3]} 3. Nc3 {[%clk 0:03:00.7]} 3... Nf6 {[%clk
0:02:58.9]} 4. Bb5 {[%clk 0:03:00.7]} 4... Nd4 {[%clk 0:02:58.5]} 5. O-O {[%clk
0:03:00.1]} 5... Nxb5 {[%clk 0:02:56.6]} 6. Nxb5 {[%clk 0:03:01]} 6... c6 {[%clk
0:02:56.2]} 7. Nc3 {[%clk 0:03:01.6]} 7... d6 {[%clk 0:02:56.1]} 8. d4 {[%clk
0:03:01.9]} 8... Qc7 {[%clk 0:02:55.9]} 9. h3 {[%clk 0:03:01.7]} 9... Be7 {[%clk
0:02:55.5]} 10. Be3 {[%clk 0:03:01.9]} 10... O-O {[%clk 0:02:55.1]} 11. a4
{[%clk 0:03:02.4]} 11... a5 {[%clk 0:02:52.1]} 12. Re1 {[%clk 0:03:01.7]} 12...
Be6 {[%clk 0:02:48.9]} 13. d5 {[%clk 0:03:00.1]} 13... cxd5 {[%clk 0:02:42]} 14.
exd5 {[%clk 0:02:54.7]} 14... Bd7 {[%clk 0:02:41.3]} 15. Qd3 {[%clk 0:02:47.6]}
15... Rfc8 {[%clk 0:02:35.1]} 16. Ra3 {[%clk 0:02:37.6]} 16... Qc4 {[%clk
0:02:30.4]} 17. Rb3 {[%clk 0:02:22.3]} 17... e4 {[%clk 0:01:56]} 18. Qxc4 {[%clk
0:02:14.3]} 18... Rxc4 {[%clk 0:01:55.4]} 19. Nd2 {[%clk 0:02:14.5]} 19... Rb4
{[%clk 0:01:54.3]} 20. Rxb4 {[%clk 0:01:42.8]} 20... axb4 {[%clk 0:01:54]} 21.
Ncxe4 {[%clk 0:01:43.7]} 21... Rxa4 {[%clk 0:01:37.9]} 22. Bf4 {[%clk
0:01:18.3]} 22... Nxd5 {[%clk 0:01:27.4]} 23. Bxd6 {[%clk 0:01:14.6]} 23... Kf8
{[%clk 0:01:06.9]} 24. Bxe7+ {[%clk 0:01:10.8]} 24... Nxe7 {[%clk 0:01:03.1]}
25. Nc5 {[%clk 0:01:10.4]} 25... Bc6 {[%clk 0:00:58.5]} 26. Nxa4 {[%clk
0:01:09.4]} 26... Bxa4 {[%clk 0:00:58.4]} 27. b3 {[%clk 0:01:08.8]} 27... Bc6
{[%clk 0:00:56.8]} 28. Ne4 {[%clk 0:00:48.5]} 28... Ke8 {[%clk 0:00:56.4]} 29.
Nc5 {[%clk 0:00:48.7]} 29... Kd8 {[%clk 0:00:52.1]} 30. Nd3 {[%clk 0:00:48.6]}
30... Nd5 {[%clk 0:00:50.3]} 31. Re4 {[%clk 0:00:48.9]} 31... Kd7 {[%clk
0:00:24]} 32. Nxb4 {[%clk 0:00:36.9]} 32... Nxb4 {[%clk 0:00:21.7]} 33. Rxb4
{[%clk 0:00:37.8]} 33... Kd6 {[%clk 0:00:20.3]} 34. f3 {[%clk 0:00:36.8]} 34...
g5 {[%clk 0:00:18.3]} 35. Kf2 {[%clk 0:00:35.7]} 35... Kc5 {[%clk 0:00:16.3]}
36. Rc4+ {[%clk 0:00:35.8]} 36... Kd6 {[%clk 0:00:14.9]} 37. Ke3 {[%clk
0:00:36.7]} 37... b5 {[%clk 0:00:14.2]} 38. Rd4+ {[%clk 0:00:36.9]} 38... Ke7
{[%clk 0:00:13.7]} 39. Kd2 {[%clk 0:00:35.9]} 39... f6 {[%clk 0:00:12.3]} 40.
Kc3 {[%clk 0:00:36.2]} 40... h6 {[%clk 0:00:10.7]} 41. Kb4 {[%clk 0:00:36.4]}
41... Bd7 {[%clk 0:00:10.7]} 42. Kc5 {[%clk 0:00:34.3]} 42... h5 {[%clk
0:00:08]} 43. h4 {[%clk 0:00:33.2]} 43... Bf5 {[%clk 0:00:03.5]} 44. f4 {[%clk
0:00:33.5]} 44... gxh4 {[%clk 0:00:01.1]} 45. Kxb5 {[%clk 0:00:32.8]} 1-0

[Event "Early-Titled-Tuesday-Blitz-September-05-2023"]
[Site "Chess.com"]
[Date "2023.09.05"]
[Round "6"]
[White "Thecourseoisildur"]
[Black "ContrVersia"]
[Result "0-1"]
[WhiteElo "2591"]
[BlackElo "2913"]
[TimeControl "180+1"]
[EndTime "9:06:25 PDT"]
[Termination "ContrVersia won on time"]

1. e4 {[%clk 0:03:00.9]} 1... c5 {[%clk 0:02:59.9]} 2. Nf3 {[%clk 0:03:01.3]}
2... a6 {[%clk 0:03:00.2]} 3. a3 {[%clk 0:03:00.1]} 3... b5 {[%clk 0:02:59.2]}
4. b4 {[%clk 0:02:59.2]} 4... cxb4 {[%clk 0:03:00.1]} 5. axb4 {[%clk 0:02:59.3]}
5... Bb7 {[%clk 0:03:01]} 6. d3 {[%clk 0:02:58]} 6... e6 {[%clk 0:03:00.6]} 7.
Bb2 {[%clk 0:02:58.2]} 7... Bxb4+ {[%clk 0:03:00.2]} 8. c3 {[%clk 0:02:54.4]}
8... Be7 {[%clk 0:02:59.8]} 9. Nbd2 {[%clk 0:02:54.1]} 9... Nf6 {[%clk 0:02:55]}
10. Qc2 {[%clk 0:02:46.8]} 10... Nc6 {[%clk 0:02:50.6]} 11. e5 {[%clk
0:02:43.7]} 11... Nd5 {[%clk 0:02:50.1]} 12. d4 {[%clk 0:02:44.1]} 12... d6
{[%clk 0:02:49.8]} 13. exd6 {[%clk 0:02:40]} 13... Qxd6 {[%clk 0:02:46.5]} 14.
Ne4 {[%clk 0:02:37.9]} 14... Qc7 {[%clk 0:02:46.4]} 15. Bd3 {[%clk 0:02:29.5]}
15... O-O {[%clk 0:02:43.7]} 16. O-O {[%clk 0:02:21.3]} 16... Nf4 {[%clk
0:02:19.2]} 17. Rfe1 {[%clk 0:02:09.1]} 17... Nxd3 {[%clk 0:02:14.8]} 18. Qxd3
{[%clk 0:02:10]} 18... h6 {[%clk 0:02:15.2]} 19. Ng3 {[%clk 0:02:00.9]} 19...
Rfd8 {[%clk 0:02:10.3]} 20. Nh5 {[%clk 0:01:52.2]} 20... Rd5 {[%clk 0:02:07.1]}
21. Ng3 {[%clk 0:01:49.5]} 21... Rad8 {[%clk 0:02:05.1]} 22. Qe3 {[%clk
0:01:40.3]} 22... Na5 {[%clk 0:01:22.5]} 23. Ne5 {[%clk 0:01:16.9]} 23... Nc4
{[%clk 0:01:15.9]} 24. Nxc4 {[%clk 0:01:15.6]} 24... Qxc4 {[%clk 0:01:16.8]} 25.
Ne4 {[%clk 0:00:44.5]} 25... e5 {[%clk 0:01:14.2]} 26. Nd2 {[%clk 0:00:40.5]}
26... Qc6 {[%clk 0:01:13.9]} 27. Nf3 {[%clk 0:00:27.9]} 27... Bf6 {[%clk
0:01:13.2]} 28. c4 {[%clk 0:00:19.9]} 28... bxc4 {[%clk 0:01:03.9]} 29. dxe5
{[%clk 0:00:19.5]} 29... Be7 {[%clk 0:01:03.9]} 30. e6 {[%clk 0:00:15]} 30...
fxe6 {[%clk 0:00:44.3]} 31. Qxe6+ {[%clk 0:00:01.8]} 31... Qxe6 {[%clk
0:00:44.3]} 32. Rxe6 {[%clk 0:00:02.5]} 32... Bf8 {[%clk 0:00:45]} 33. h3 {[%clk
0:00:02.1]} 33... Rb5 {[%clk 0:00:39.2]} 34. Bc3 {[%clk 0:00:01.6]} 34... Bxf3
{[%clk 0:00:38.3]} 35. gxf3 {[%clk 0:00:01.7]} 35... Rd3 {[%clk 0:00:39.2]} 36.
Be1 {[%clk 0:00:01.3]} 36... Rg5+ {[%clk 0:00:35.1]} 37. Kf1 {[%clk 0:00:01.3]}
37... Rxf3 {[%clk 0:00:35.2]} 38. h4 {[%clk 0:00:01.9]} 38... Rg4 {[%clk
0:00:34.3]} 39. Raxa6 {[%clk 0:00:02.3]} 39... Rxh4 {[%clk 0:00:33.4]} 40. Ra8
{[%clk 0:00:02.1]} 40... Kh7 {[%clk 0:00:33.3]} 41. Ree8 {[%clk 0:00:01.7]}
41... Bc5 {[%clk 0:00:27.8]} 42. Rh8+ {[%clk 0:00:02]} 42... Kg6 {[%clk
0:00:28]} 43. Rac8 {[%clk 0:00:01.4]} 43... Be7 {[%clk 0:00:17.8]} 44. Rc7
{[%clk 0:00:01.4]} 44... Bf6 {[%clk 0:00:17.9]} 45. Rhc8 {[%clk 0:00:01.2]}
45... Rff4 {[%clk 0:00:11.5]} 0-1